Cogmind - Beta 16.1 @@@ ROGUE MODE // 2026.03.21 @ 13:34:47 Player: Skrub Result: Self-destructed Performance ------------- Evolutions (2) 1000 Regions Visited (3) 600 Robots Destroyed (77) 385 Value Destroyed (1558) 1558 Prototype IDs (1) 20 Alien Tech Used (0) 0 Bonus (119) 119 TOTAL SCORE: 3682 Bonus ------- High Alert Combat Kills 119 Cogmind --------- Core Integrity 128/550 Matter 300/300 Energy 132/350 System Corruption 0% Temperature Cool (9) Movement Walking (260) Ox2 Location -8/Materials Parts ------- > --- POWER (2) -------- (None) > --- PROPULSION (3) --- Aluminum Leg > --- UTILITY (3) ------ Improved Heat Sink High-capacity Battery Field Recycling Unit > --- WEAPON (3) ------- Particle Gun Heavy Particle Cannon > --- INVENTORY (5) ---- Aluminum Leg VTOL Module Structural Scanner Particle Gun Peak State ------------ > --- POWER ------------ Improved Ion Engine Improved Ion Engine > --- PROPULSION ------- Advanced Treads Advanced Treads Advanced Treads > --- UTILITY ---------- Small Storage Unit Improved Signal Interpreter ECM Suite > --- WEAPON ----------- Heavy Particle Cannon Heavy Particle Cannon Heavy Particle Cannon > --- INVENTORY -------- VTOL Module High-capacity Battery Structural Scanner Hardened Light Armor Plating Field Recycling Unit Heavy Particle Cannon Heavy Particle Cannon Rocket Launcher [Rating: 28] Favorites ----------- Power Improved Ion Engine Engine Improved Ion Engine Propulsion Advanced Treads Treads Advanced Treads Leg Aluminum Leg Wheel Compact Wheel Hover Unit Hover Unit Flight Unit Flight Unit Utility Small Storage Unit Device Structural Scanner Storage Small Storage Unit Processor Improved Signal Interpreter Protection Hardened Light Armor Plating Weapon Heavy Particle Cannon Energy Gun Particle Gun Energy Cannon Heavy Particle Cannon Ballistic Gun Light Assault Rifle Launcher Rocket Launcher Build | -11 -10 -9 -8 ------- Run | Yrd Mat Mat Mat Slots Evolved 4 | . . 2 2 Power 1 | . . . 1 Propulsion 1 | . . 1 . Utility 1 | . . 1 . Weapon 1 | . . . 1 Parts Attached 54 | 6 12 21 15 Power 7 | . 3 2 2 Engine 7 | . 3 2 2 Core . | . . . . Reactor . | . . . . Propulsion 20 | 2 3 11 4 Treads 6 | . . 6 . Leg 6 | . 3 . 3 Wheel 2 | 2 . . . Hover 2 | . . 2 . Flight 4 | . . 3 1 Utility 12 | 2 2 4 4 Device 7 | 1 1 3 2 Storage 2 | 1 . . 1 Processor 2 | . 1 . 1 Hackware . | . . . . Protection 1 | . . 1 . Artifact . | . . . . Weapon 15 | 2 4 4 5 Energy Gun 6 | . 2 2 2 Energy Cannon 5 | . . 2 3 Ballistic Gun 2 | 2 . . . Ballistic Cannon . | . . . . Launcher 2 | . 2 . . Special Weapon . | . . . . Impact Weapon . | . . . . Slashing Weapon . | . . . . Piercing Weapon . | . . . . Special Melee Weapon . | . . . . Unidentified Prototypes 1 | . . 1 . Parts Lost 27 | . 3 9 15 Power 6 | . 1 2 3 Propulsion 11 | . . 6 5 Utility 2 | . . . 2 Weapon 8 | . 2 1 5 Highest Loss Streak 12 | . 3 3 12 To Critical Strikes . | . . . . Average Backups 6 | 6 6 6 5 Power . | 1 . . . Propulsion 1 | 3 . 1 1 Utility 2 | . 2 2 2 Weapon 1 | 1 2 1 1 Tool/Special . | . . . . Unused Backups 12 | . 6 5 1 Power 1 | . . 1 . Propulsion 6 | . 3 2 1 Utility 2 | . . 2 . Weapon 3 | . 3 . . Tool/Special . | . . . . Average Slot Usage (%) 89 | . 99 89 69 Engine 9 | . 14 9 8 Treads 12 | . . 17 12 Leg 6 | . 17 3 4 Wheel 2 | . 10 . . Hover 1 | . . 2 . Flight 2 | . . 3 . Device 16 | . 11 19 10 Storage 10 | . 14 10 7 Processor 1 | . 3 . 4 Protection 1 | . . 2 . Energy Gun 7 | . 13 5 3 Energy Cannon 9 | . . 11 18 Ballistic Gun 1 | . 9 . . Launcher 3 | . 5 2 . Peak Build Rating 28 | 6 11 22 28 Average Rating 14 | 4 9 15 18 On Entrance 9 | . 6 10 21 Avg Prop Armor Cover (%) 7 | . 8 7 . Naked Turns . | . . . . Heaviest Build 40 | 8 18 27 40 Greatest Support 66 | 32 32 66 66 Greatest Overweight (x) 9 | . 1 8 9 Average Overweight (x) . | . . . 1 Largest Inventory Capacity 8 | 8 8 8 8 Average Capacity 7 | 7 8 7 6 Most Carried 8 | 8 8 8 8 Average Carried 6 | 6 6 6 5 Final Capacity 8 | 8 8 8 5 Final Carried 8 | 8 3 8 4 Class Distribution -------------------- 56% | Mutant 18% | Infiltrator-Mutant 15% | Scavenger-Mutant 6% | Gunner Dominant Class ---------------- Mutant | -10/Materials Mutant | -9/Materials Gunner | -8/Materials Resources | -11 -10 -9 -8 ----------- Run | Yrd Mat Mat Mat Matter Collected 1012 | 266 122 479 145 Remotely 160 | 118 42 . . Salvage Created 1907 | 51 457 1036 363 Parts 139 | 2 31 84 22 Haulers Intercepted 3 | . 2 1 . Recyclers Shooed 5 | . . 5 . Parts Field Recycled . | . . . . Retrieved Matter . | . . . . Parts Self-Destructed . | . . . . Prevented . | . . . . Parts Restored . | . . . . Kills | -11 -10 -9 -8 ------- Run | Yrd Mat Mat Mat Combat Hostiles Destroyed 47 | . 15 24 8 Melee 2 | . . . 2 Guns 22 | . 14 8 . Cannons 8 | . . 4 4 AOE 15 | . 1 12 2 Classes Destroyed 12 | 1 4 6 1 Worker 6 | . . 4 2 Builder 5 | . . 3 2 Tunneler 1 | . . 1 . Hauler 3 | . 2 1 . Recycler 6 | 1 1 4 . Operator 1 | . . 1 . Watcher 8 | . 2 5 1 Swarmer 23 | . 12 11 . Grunt 15 | . 3 8 4 Brawler 1 | . . 1 . Duelist 2 | . . . 2 Sentry 6 | . . 4 2 Best Kill Streak 16 | 1 5 16 7 Combat Bots Only 9 | . 4 9 4 Max Kills in Single Turn 4 | 1 3 3 4 Gunslinging . | . . . . Exploded 2 | . 1 2 1 Melee 1 | . . . 1 Uniques/NPCs Destroyed . | . . . . Combat | -11 -10 -9 -8 -------- Run | Yrd Mat Mat Mat Hostile Shots Fired 301 | . 75 101 125 Missed 71 | . 18 36 17 Hits 230 | . 57 65 108 Melee 6 | . . . 6 Projectile 224 | . 57 65 102 Critical Strikes 11 | . . 4 7 Damage Taken 3484 | . 713 879 1892 Core 853 | . 229 202 422 Absorbed by Shields . | . . . . Regen/Repaired (Parts) 105 | . . 105 . Core Remaining (%) 52 | 100 8 49 . Volleys Fired 139 | 3 44 73 19 Largest 3 | 2 2 2 3 Hottest 225 | 40 130 150 225 Shots Fired 230 | 6 88 98 38 Gun 134 | 6 88 40 . Cannon 68 | . . 34 34 Launcher 28 | . . 24 4 Special . | . . . . Kinetic 38 | 6 32 . . Thermal 153 | . 56 63 34 Explosive 28 | . . 24 4 Electromagnetic 11 | . . 11 . Robot Hit Streak 10 | 5 8 10 6 Robot Miss Streak 4 | . 4 3 3 Penetration Max . | . . . . Secondary Targets 2 | . 2 . . Max Gunslinging Chain 1 | . 1 . . Shots Hit Robots 131 | 5 50 53 23 Core Hits 104 | 2 22 58 22 Critical Kills 1 | 1 . . . Critical Parts Destroyed . | . . . . Critical Strikes 5 | 1 1 3 . Burn 4 | . 1 3 . Destroy 1 | 1 . . . Melee Attacks . | . . . . Impact . | . . . . Slashing . | . . . . Piercing . | . . . . Sneak Attacks . | . . . . Combat Hostiles . | . . . . Follow-up Attacks . | . . . . Damage Inflicted 4352 | 41 951 2356 1004 Guns 1122 | 41 658 423 . Cannons 1000 | . . 450 550 Explosions 2157 | . 293 1483 381 Melee . | . . . . Ramming 73 | . . . 73 Kinetic 183 | 41 142 . . Thermal 2054 | . 516 988 550 Explosive 1944 | . 293 1270 381 Electromagnetic 98 | . . 98 . Impact . | . . . . Slashing . | . . . . Piercing . | . . . . Highest Corruption 1 | . . 1 . Average Corruption 1 | . . 1 . Corruption Purged . | . . . . Corruption Blocked . | . . . . Overload Shots . | . . . . Overflow Damage 356 | . 264 51 41 Projectiles 25 | . . 25 . Explosions 331 | . 264 26 41 Melee . | . . . . Knockbacks . | . . . . Impact . | . . . . Kinetic . | . . . . Secondary . | . . . . Self-Inflicted Damage 347 | . 210 40 97 Shots 7 | . 2 2 3 Rammed 22 | . . . 22 Targets Rammed 39 | . 1 . 38 Kicked 16 | . 1 . 15 Crushed 1 | . . . 1 Highest Temperature 641 | . 409 258 641 Average Temperature 140 | . 121 71 259 Received Heat Transfer 1314 | . 84 321 909 Effects 26 | . 3 . 23 Shutdowns 7 | . 1 . 6 Energy Bleed 3 | . 1 . 2 Interference 4 | . . . 4 Matter Decay 2 | . . . 2 Short Circuit 3 | . 1 . 2 Damage (minor) 1 | . . . 1 Damage (major) 6 | . . . 6 Siege Activations . | . . . . Martial Activations . | . . . . Shielding Activations . | . . . . Robots Disrupted . | . . . . Combat Hostiles . | . . . . Robots Corrupted . | . . . . Combat Hostiles . | . . . . Parts Fried . | . . . . Impact Corruptions . | . . . . Robots Melted . | . . . . Combat Hostiles . | . . . . Parts Melted 6 | . 3 3 . Heat Transferred 3863 | . 1258 1791 814 Parts Sabotaged . | . . . . Parts Stolen . | . . . . Parts Stripped . | . . . . Power Chain Reactions . | . . . . Alert | -11 -10 -9 -8 ------- Run | Yrd Mat Mat Mat Maximum Alert Level 3 | . 1 3 1 Low Security (%) 26 | 100 59 16 . Level 1 31 | . 40 15 100 Level 2 37 | . . 61 . Level 3 4 | . . 7 . Level 4 . | . . . . Level 5 . | . . . . High Security . | . . . . Max Security . | . . . . Peak Influence 725 | 5 345 725 356 Initial 269 | . . 130 269 Average 389 | . 129 522 294 Influence Increases 2012 | 5 553 1160 294 Destroy 0b10 Robot/C 940 | . 300 480 160 Destroy 0b10 Robot/NC 150 | 5 25 95 25 Destroy Leader 222 | . 68 112 42 Successful Hack 74 | . 8 60 6 Disable Machine 180 | . 30 120 30 Destroy Structure 206 | . 17 158 31 Partial Spotted 75 | . . 75 . Lose Combat Pursuer 165 | . 105 60 . Influence Decreases 1779 | 5 245 831 698 Entered New Map 546 | . . 178 368 Time Decay 953 | 5 215 553 180 Lost Part 270 | . 30 90 150 Lost Ally 10 | . . 10 . Squads Dispatched 6 | . 2 4 . Investigation 1 | . 1 . . Extermination . | . . . . Reinforcement 4 | . 1 3 . Assault 1 | . . 1 . Garrison . | . . . . Intercept . | . . . . Searches Triggered . | . . . . Construction Impeded 2 | . . 2 . Haulers Reinforced . | . . . . Active Scanning Responses . | . . . . Cargo Convoy Interrupts . | . . . . Stealth | -11 -10 -9 -8 --------- Run | Yrd Mat Mat Mat Distress Signals 7 | . 3 3 1 Communications Jammed . | . . . . Distress Signals . | . . . . Times Spotted 71 | . 24 34 13 Peak Tracking Total 7 | . 4 6 7 Tactical Retreats 7 | . 4 3 . Traps | -11 -10 -9 -8 ------- Run | Yrd Mat Mat Mat Traps Triggered 3 | . 1 2 . Indirectly . | . . . . Trap Hack Attempts . | . . . . Triggered . | . . . . Disarmed . | . . . . Reprogrammed . | . . . . Reused . | . . . . Traps Extracted . | . . . . Installed . | . . . . Triggered . | . . . . Machines | -11 -10 -9 -8 ---------- Run | Yrd Mat Mat Mat Machines Disabled 12 | . 2 8 2 Max in Single Turn 2 | . 2 2 1 Machines Repaired . | . . . . Machines Dismantled . | . . . . Machines Sabotaged . | . . . . Overloaded Fab Kills . | . . . . Hacking | -11 -10 -9 -8 --------- Run | Yrd Mat Mat Mat Machines Accessed 19 | . 4 14 1 Terminals 12 | . 3 9 . Fabricators . | . . . . Repair Stations 2 | . . 2 . Recycling Units 4 | . 1 2 1 Scanalyzers 1 | . . 1 . Garrison Access . | . . . . Total Hacks 57 | . 12 43 2 Successful 37 | . 6 30 1 Failed 20 | . 6 13 1 Catastrophic 3 | . . 3 . Database Lockouts . | . . . . Manual 50 | . 12 36 2 Terminals 40 | . 9 31 . Fabricators . | . . . . Repair Stations 4 | . . 4 . Recycling Units 9 | . 3 4 2 Scanalyzers 4 | . . 4 . Garrison Access . | . . . . Terminal Hacks . | . . . . Fabricator Hacks . | . . . . Repair Station Hacks 3 | . . 3 . Scan Component 1 | . . 1 . Repair 1 | . . 1 . Refit 1 | . . 1 . Recycling Unit Hacks . | . . . . Scanalyzer 4 | . . 4 . Insert Component 2 | . . 2 . Analyze 2 | . . 2 . Garrison Access Hacks . | . . . . Unauthorized Hacks 30 | . 6 23 1 Terminals 24 | . 5 19 . Track 1 | . . 1 . Assimilate 5 | . . 5 . Botnet 10 | . 3 7 . Operators 1 | . . 1 . Skim 7 | . 2 5 . Fabricators . | . . . . Repair Stations . | . . . . Recycling Units 6 | . 1 4 1 Monitor 1 | . . 1 . Reject 2 | . . 2 . Recyclers 1 | . 1 . . Mask 2 | . . 1 1 Scanalyzers . | . . . . Garrison Access . | . . . . Data Cores Recovered . | . . . . Used . | . . . . Hacking Detections 16 | . 4 11 1 Full Trace Events 1 | . . 1 . Feedback Events . | . . . . Feedback Blocked . | . . . . Robot Schematics Acquired . | . . . . Robots Built . | . . . . Authchips . | . . . . Time . | . . . . Total Robot Build Rating . | . . . . Part Schematics Acquired 2 | . . 2 . Parts Built . | . . . . Authchips . | . . . . Time . | . . . . Total Part Build Rating . | . . . . Part Studies Acquired . | . . . . Parts Repaired 1 | . . 1 . Time 26 | . . 26 . Parts Recycled . | . . . . Recycled Matter . | . . . . Retrieved Matter . | . . . . Retrieved Components . | . . . . Parts Scanalyzed 2 | . . 2 . Part Schematics Acquired 2 | . . 2 . Parts Damaged . | . . . . Bothacking | -11 -10 -9 -8 ------------ Run | Yrd Mat Mat Mat Used RIF Installer . | . . . . Robots Hacked . | . . . . Non-combat . | . . . . Combat . | . . . . Robot Hacks Applied . | . . . . Relay Couplers Released . | . . . . Fabnet Peak Effective % . | . . . . Robots Rewired . | . . . . Allies Hacked . | . . . . Hacks Repelled . | . . . . Allies | -11 -10 -9 -8 -------- Run | Yrd Mat Mat Mat Total Allies 1 | . . 1 . Largest Group 1 | . . 1 . Highest-Rated Group 10 | . . 10 . Highest-Rated Ally 10 | . . 10 . Total Orders 3 | . . 3 . ROAM 2 | . . 2 . FOLLOW 1 | . . 1 . Ally Attacks . | . . . . Total Damage . | . . . . Kills . | . . . . Allies Corrupted . | . . . . Allies Melted . | . . . . Intel | -11 -10 -9 -8 ------- Run | Yrd Mat Mat Mat Active Infowar (turns) 1415 | . 116 1190 109 Structural 1208 | . . 1190 18 T.N.C. 116 | . 116 . . ECM 584 | . . 475 109 Robot Analysis Total . | . . . . Derelict Logs Recovered . | . . . . Drone Launches . | . . . . Drone Recoveries . | . . . . Exploration | -11 -10 -9 -8 ------------- Run | Yrd Mat Mat Mat Turns Passed 2625 | 90 558 1616 361 Spaces Moved 1417 | 70 329 902 116 Core 46 | 12 . 4 30 Treads 692 | . . 629 63 Legs 227 | . 198 6 23 Wheels 189 | 58 131 . . Hover 179 | . . 179 . Flight 84 | . . 84 . Fastest Speed 34 | 50 100 34 100 Average Speed 128 | 91 117 129 176 Slowest Speed 500 | 100 190 450 500 Overloaded Moves . | . . . . Propulsion Burnouts . | . . . . Robots Hopped . | . . . . Potential Cave-ins . | . . . . Cave-ins Triggered . | . . . . Exploration Rate (%) 32 | 5 42 71 10 Regions Visited 3 Branch Regions . Pre-discovered Areas 3 | . . 3 . Known Exits Taken 1 | . . 1 . Unknown Exits Taken 2 | 1 1 . . Scrap Searched . | . . . . Spaces Dug 5 | . . 5 . Terrain Destroyed 232 | . 17 182 33 Melee . | . . . . Projectile 17 | . . 9 8 AOE 215 | . 17 173 25 Terrain Rammed . | . . . . Walls Destroyed . | . . . . Machines Disabled . | . . . . Actions | -11 -10 -9 -8 --------- Run | Yrd Mat Mat Mat Total 1992 | 90 420 1260 222 Wait 237 | . 10 212 15 Move 1414 | 69 328 901 116 Hop . | . . . . Pick Up 66 | 12 11 33 10 Fast Attach 8 | 2 1 2 3 Attach 37 | 4 4 16 13 Detach 5 | . 1 2 2 Swap 17 | . 8 5 4 Drop 30 | . 12 16 2 Fire 139 | 3 44 73 19 Melee . | . . . . Ram 8 | . . . 8 Kick 16 | . 1 . 15 Crush 15 | . . . 15 Escape Stasis . | . . . . Rewire . | . . . . Trap . | . . . . Miscellaneous . | . . . . Route ------- -11/Scrapyard -10/Materials -9/Materials (discovered 4 exits: *Mat x3 / [*Min]) -8/Materials (discovered 2 exits: Fac x2) History --------- Turn | Location | Event 32 | -11/Scrapyard | Discovered new exit (range 16) 91 | -11/Scrapyard | Entered Materials 317 | -10/Materials | Build established: Mutant 538 | -10/Materials | Core integrity fell below 50% 538 | -10/Materials | Core integrity fell below 20% 559 | -10/Materials | Discovered new exit (range 12) 568 | -10/Materials | Lost 3 parts (1p2w) 649 | -10/Materials | Entered another Materials area 649 | -9/Materials | Evolved 2 slots: Propulsion x1, Utility x1 957 | -9/Materials | Lost 3 parts (1p2n) 1179 | -9/Materials | Discovered new exit (range 5) 1204 | -9/Materials | Destroyed 9 combat bots 1799 | -9/Materials | Discovered new exit (range 3) 1923 | -9/Materials | Core integrity fell below 50% 1963 | -9/Materials | Loaded intel: 18 interactive machine locations 2009 | -9/Materials | Repaired Sml. Storage Unit 2024 | -9/Materials | Learned location of Zion (-6) 2075 | -9/Materials | Learned location of Recycling (-7) 2093 | -9/Materials | Build established: Infiltrator-Mutant 2165 | -9/Materials | Identified exit to Materials 2194 | -9/Materials | Learned location of 2 exits from Materials 2249 | -9/Materials | First assault squad dispatched 2265 | -9/Materials | Entered another Materials area 2265 | -8/Materials | Evolved 2 slots: Power x1, Weapon x1 2266 | -8/Materials | Identified exit to Factory 2445 | -8/Materials | Core integrity fell below 50% 2489 | -8/Materials | Lost 12 parts (3p3n2u4w) 2626 | -8/Materials | Self-destructed Last Messages --------------- 02493_ K-01 Serf collects debris. 02494_ R-06 Scavenger collects Lgt. Treads. 02497_ K-01 Serf collects debris. 02508_ Acquired Hvy. Particle Cannon. 02511_ K-01 Serf collects debris. 02540_ Acquired Aluminum Leg. 02573_ Acquired 66 matter. 02574_ Acquired 3 matter. 02605_ Kicked G-50 Soldier out of the way. 02607_ Kicked G-47 Trooper. 02608_ Hvy. Particle Cannon destroyed. 02608_ Kicked G-47 Trooper. 02611_ Kicked G-47 Trooper out of the way. 02613_ Kicked G-47 Trooper. 02615_ Kicked G-47 Trooper out of the way. 02619_ Aluminum Leg destroyed. 02620_ Kicked G-47 Trooper. 02624_ Kicked G-47 Trooper out of the way. 02625_ Aluminum Leg destroyed. 02625_ Critical hit (Burn: +37). Map ----- +----------------------------------------------------+ | ?????????????????????????????????????????????????? | | ?????????????????????????????????????????????????? | | ?????????????????????????????????????????????????? | | ?????????????????????????????????????????????????? | | ?????????????????????????????????????????????????? | | ?????????????????????????????????????????????????? | | ?????????????????????????????????????????????????? | | ?????????????????????????????????????????????????? | | ?????????????????????????????????????????????????? | | ?????????????????????? ??????????????????????????? | | ?????????###########?? ??????????????????????????? | | ?????????# ##? ??????????????????????????? | | ?????????# #######+??????????????????????? | | ??????#??# # ???????????????????????? | | ??????# ?# # ????????????????????????? | | ??????# # # ????????????????????????? | | ???????? / + ###???????????????????????? | | ?????????? # # ????????????????????????? | | ???????????? ? # ####??????????????????????? | | #####/##### #####################?????? | | [ ????? | | ########### ????? | | ???????????????# %# ????? | | ????????????????#####+##### ########???????????? | | ????????????????# %gg%%# ##?????????????????? | | ????????????????# g@# ##?????????????????? | | ????????????????# " # ##########?????????? | | ????????????????# "" # # #?????????? | | ????????????????# "" # #] """ #?????????? | | ????????????????# " " "Y # # """ #?????????? | | ????????????????# """ # + """ #?????????? | | ????????????????# [! ! # # #?????????? | | ????????????????########### # ] """ #?????????? | | ??????????????????######### # """ #?????????? | | ??????????????????######### # """ #?????????? | | ??????????????????## # # ! ##????????? | | ??????????????????##""" # ###########????????? | | ??????????????????##""" + % ??????? | | ??????????????????##""" # ??????? | | ??????????????????## # ###""########??????? | | ??????????????????## # ##########?????????? | | ??????????????????##############?????????????????? | | ??????????????????##############?????????????????? | | ?????????????????????????????????????????????????? | | ?????????????????????????????????????????????????? | | ?????????????????????????????????????????????????? | | ?????????????????????????????????????????????????? | | | | | | | +----------------------------------------------------+ Best States ------------- Heat Dissipation 50 Energy Generation 19 Energy Capacity 430 Matter Stores 300 Matter Capacity 300 Sight Range 16 Terrain Scan Density 10 ECM Strength 1 Additional Mass Support 6 Armor Coverage 150 Evasion (%) 63 Recoil Reduction 3 Item Schematics ----------------- Rocket Launcher | -9/Materials | Scanalyzed Flight Unit | -9/Materials | Scanalyzed Robot Schematics ------------------ None Fabricated ------------ Nothing Repaired ---------- Sml. Storage Unit | 30% | -9/Materials Studied --------- None Alien Tech Used ----------------- None Achievements -------------- Close Call DATA ERROR: Steam Global Achievement% Fitting Room For Emergencies Only Myspace Novice Programmer Organ Harvest Resistances Are Futile Significant Disruption There's More Where That Came From Universal Adapter Use The Force Well Done Challenges ------------ None Game ------ Seed FortressTransportLance Manual? 0 Play Time 01:06:40 Cumulative 13.6 hours Start 2026.03.21 @ 12:24:27 End 2026.03.21 @ 13:34:47 Sessions 1 Manual Loads 0 Difficulty Rogue Special Mode None Game No. 19 Rogue 19 Adventurer 0 Explorer 0 Win Type - Total 0 Types 0/0/0/0/0/0/0/0/0/0 Lore% 8 Gallery% 15 Achievement% 13 Wizard Run 0 Options --------- Layout 1 ASCII 0 Keyboard 0 Movement Mouse Keybinds 0 Fullscreen 1 Font 48/Smallcaps Map View 50x35 Zoom Use 0% Tactical HUD 1 Map Filters NONE Filters NONE Steam 1 RUN: 10ec1b62-7031-43ab-8300-4cb1a75e6cff